Cogmind - Beta 13 @@@ ROGUE MODE // 2024.07.10 @ 19:38:26 Player: coinshot Result: Destroyed by S-10 Pest with Light Assault Rifle Performance ------------- Evolutions (0) 0 Regions Visited (1) 200 Robots Destroyed (14) 70 Value Destroyed (120) 120 Prototype IDs (0) 0 Alien Tech Used (0) 0 Bonus (0) 0 TOTAL SCORE: 390 Bonus ------- None Cogmind --------- Core Integrity 0/250 Matter 439/450 Energy 100/100 System Corruption 2% Temperature Cool (1) Movement Flying (120) Ox1 Location -10/Materials Parts ------- > --- POWER (1) -------- (None) > --- PROPULSION (2) --- Flight Unit > --- UTILITY (2) ------ Small Storage Unit Large Matter Pod > --- WEAPON (2) ------- (None) > --- INVENTORY (8) ---- Small Storage Unit Large Matter Pod (8) Visual Processing Unit Signal Interpreter Improved Terrain Scanner Propulsion Shielding Peak State ------------ > --- POWER ------------ Light Ion Engine > --- PROPULSION ------- Wheel Compact Wheel > --- UTILITY ---------- Small Storage Unit Improved Terrain Scanner > --- WEAPON ----------- EM Pulse Gun Medium Laser > --- INVENTORY -------- Light Assault Rifle [Rating: 9] Favorites ----------- Power Light Ion Engine Engine Light Ion Engine Propulsion Wheel Wheel Wheel Flight Unit Flight Unit Utility Small Storage Unit Device Improved Terrain Scanner Storage Small Storage Unit Weapon Medium Laser Energy Gun Medium Laser Ballistic Gun Light Assault Rifle Build | -11 -10 ------- Run | Yrd Mat Slots Evolved . | . . Power . | . . Propulsion . | . . Utility . | . . Weapon . | . . Parts Attached 13 | 8 5 Power 1 | 1 . Engine 1 | 1 . Core . | . . Reactor . | . . Propulsion 6 | 2 4 Treads . | . . Leg . | . . Wheel 4 | 2 2 Hover . | . . Flight 2 | . 2 Utility 3 | 2 1 Device 1 | 1 . Storage 2 | 1 1 Processor . | . . Hackware . | . . Protection . | . . Artifact . | . . Weapon 3 | 3 . Energy Gun 2 | 2 . Energy Cannon . | . . Ballistic Gun 1 | 1 . Ballistic Cannon . | . . Launcher . | . . Special Weapon . | . . Impact Weapon . | . . Slashing Weapon . | . . Piercing Weapon . | . . Special Melee Weapon . | . . Unidentified Prototypes . | . . Corrupted Parts 1 | . 1 System Corruption 2 | . 2 Parts Lost 7 | . 7 Power 1 | . 1 Propulsion 4 | . 4 Utility . | . . Weapon 2 | . 2 Highest Loss Streak 7 | . 7 To Critical Strikes . | . . Average Slot Usage (%) 90 | . 90 Engine 11 | . 11 Wheel 23 | . 23 Flight 1 | . 1 Device 5 | . 5 Storage 22 | . 22 Energy Gun 24 | . 24 Naked Turns . | . . Heaviest Build 15 | 13 15 Greatest Support 26 | 26 26 Greatest Overweight (x) 1 | . 1 Average Overweight (x) . | . . Largest Inventory Capacity 8 | 8 8 Average Capacity 7 | 7 8 Most Carried 8 | 5 8 Average Carried 5 | 2 5 Final Capacity 8 | 8 8 Final Carried 6 | 4 6 Class Distribution -------------------- 100% | Mutant Dominant Class ---------------- Mutant | -10/Materials Resources | -11 -10 ----------- Run | Yrd Mat Matter Collected 433 | 280 153 Remotely . | . . Salvage Created 299 | 136 163 Parts 31 | 10 21 Haulers Intercepted . | . . Recyclers Shooed 1 | 1 . Parts Field Recycled . | . . Retrieved Matter . | . . Parts Self-Destructed . | . . Prevented . | . . Kills | -11 -10 ------- Run | Yrd Mat Combat Hostiles Destroyed 5 | . 5 Guns 3 | . 3 AOE 2 | . 2 Classes Destroyed 5 | 3 2 Worker 5 | 2 3 Tunneler 1 | 1 . Recycler 1 | 1 . Watcher 2 | . 2 Swarmer 5 | . 5 Best Kill Streak 4 | 2 4 Combat Bots Only 3 | . 3 Max Kills in Single Turn 2 | 1 2 Gunslinging . | . . Exploded 2 | . 2 Melee . | . . Uniques/NPCs Destroyed . | . . Combat | -11 -10 -------- Run | Yrd Mat Hostile Shots Fired 87 | . 87 Missed 19 | . 19 Damage Taken 611 | . 611 Core 250 | . 250 Absorbed by Shields . | . . Core Remaining (%) 100 | 100 . Volleys Fired 28 | 7 21 Largest 2 | 2 2 Hottest 90 | 90 90 Shots Fired 56 | 14 42 Gun 56 | 14 42 Cannon . | . . Launcher . | . . Special . | . . Kinetic . | . . Thermal 28 | 7 21 Explosive . | . . Electromagnetic 28 | 7 21 Robot Hit Streak 8 | 6 8 Robot Miss Streak 5 | 1 5 Penetration Max . | . . Secondary Targets . | . . Shots Hit Robots 31 | 9 22 Core Hits 15 | 5 10 Critical Kills . | . . Critical Parts Destroyed . | . . Critical Strikes 4 | 3 1 Burn 2 | 2 . Corrupt 2 | 1 1 Melee Attacks . | . . Impact . | . . Slashing . | . . Piercing . | . . Sneak Attacks . | . . Combat Hostiles . | . . Follow-up Attacks . | . . Damage Inflicted 508 | 117 391 Guns 406 | 117 289 Cannons . | . . Explosions 95 | . 95 Melee . | . . Ramming 7 | . 7 Kinetic . | . . Thermal 274 | 37 237 Explosive . | . . Electromagnetic 227 | 80 147 Impact . | . . Slashing . | . . Piercing . | . . Highest Corruption 2 | . 2 Average Corruption 2 | . 2 Corruption Purged . | . . Corruption Blocked . | . . Effects 1 | . 1 Matter Fused 1 | . 1 Overload Shots . | . . Overflow Damage 17 | . 17 Projectiles . | . . Explosions 17 | . 17 Melee . | . . Knockbacks . | . . Impact . | . . Kinetic . | . . Secondary . | . . Self-Inflicted Damage 2 | . 2 Shots . | . . Rammed 3 | . 3 Targets Rammed 3 | . 3 Kicked . | . . Crushed . | . . Highest Temperature 304 | 70 304 Average Temperature 90 | 22 109 Received Heat Transfer 96 | . 96 Siege Activations . | . . Robots Corrupted . | . . Combat Hostiles . | . . Parts Fried . | . . Impact Corruptions . | . . Robots Melted . | . . Combat Hostiles . | . . Parts Melted 2 | 1 1 Heat Transferred 816 | 259 557 Parts Sabotaged . | . . Parts Stolen . | . . Parts Stripped . | . . Power Chain Reactions 2 | . 2 Alert | -11 -10 ------- Run | Yrd Mat Peak Influence 236 | 20 236 Initial 13 | . 13 Average 65 | 7 86 Maximum Alert Level 1 | . 1 Low Security (%) 93 | 100 90 Level 1 6 | . 9 Level 2 . | . . Level 3 . | . . Level 4 . | . . Level 5 . | . . High Security . | . . Max Security . | . . Squads Dispatched 2 | . 2 Investigation 1 | . 1 Extermination . | . . Reinforcement 1 | . 1 Assault . | . . Garrison . | . . Intercept . | . . Searches Triggered . | . . Construction Impeded . | . . Haulers Reinforced . | . . Active Scanning Responses . | . . Cargo Convoy Interrupts . | . . Stealth | -11 -10 --------- Run | Yrd Mat Distress Signals 1 | . 1 Communications Jammed . | . . Distress Signals . | . . Times Spotted 13 | . 13 Peak Tracking Total 5 | . 5 Tactical Retreats 1 | . 1 Traps | -11 -10 ------- Run | Yrd Mat Traps Triggered 1 | . 1 Indirectly . | . . Trap Hack Attempts . | . . Triggered . | . . Disarmed . | . . Reprogrammed . | . . Reused . | . . Traps Extracted . | . . Installed . | . . Triggered . | . . Machines | -11 -10 ---------- Run | Yrd Mat Machines Disabled 2 | . 2 Max in Single Turn 1 | . 1 Machines Repaired . | . . Machines Dismantled . | . . Machines Sabotaged . | . . Overloaded Fab Kills . | . . Hacking | -11 -10 --------- Run | Yrd Mat Machines Accessed 4 | . 4 Terminals 4 | . 4 Fabricators . | . . Repair Stations . | . . Recycling Units . | . . Scanalyzers . | . . Garrison Access . | . . Total Hacks 6 | . 6 Successful 2 | . 2 Failed 4 | . 4 Catastrophic 2 | . 2 Database Lockouts . | . . Manual . | . . Terminals 6 | . 6 Fabricators . | . . Repair Stations . | . . Recycling Units . | . . Scanalyzers . | . . Garrison Access . | . . Terminal Hacks 2 | . 2 Emergency Access Points 1 | . 1 Maintenance Status 1 | . 1 Fabricator Hacks . | . . Repair Station Hacks . | . . Recycling Unit Hacks . | . . Scanalyzer . | . . Garrison Access Hacks . | . . Unauthorized Hacks . | . . Terminals . | . . Fabricators . | . . Repair Stations . | . . Recycling Units . | . . Scanalyzers . | . . Garrison Access . | . . Data Cores Recovered . | . . Used . | . . Hacking Detections 2 | . 2 Full Trace Events . | . . Feedback Events . | . . Feedback Blocked . | . . Robot Schematics Acquired . | . . Robots Built . | . . Authchips . | . . Time . | . . Total Robot Build Rating . | . . Part Schematics Acquired . | . . Parts Built . | . . Authchips . | . . Time . | . . Total Part Build Rating . | . . Parts Repaired . | . . Time . | . . Parts Recycled . | . . Recycled Matter . | . . Retrieved Matter . | . . Retrieved Components . | . . Parts Scanalyzed . | . . Part Schematics Acquired . | . . Parts Damaged . | . . Bothacking | -11 -10 ------------ Run | Yrd Mat Used RIF Installer . | . . Robots Hacked . | . . Non-combat . | . . Combat . | . . Robot Hacks Applied . | . . Relay Couplers Released . | . . Fabnet Peak Effective % . | . . Robots Rewired . | . . Allies Hacked . | . . Hacks Repelled . | . . Allies | -11 -10 -------- Run | Yrd Mat Total Allies . | . . Largest Group . | . . Highest-Rated Group . | . . Highest-Rated Ally . | . . Total Orders . | . . Ally Attacks . | . . Total Damage . | . . Kills . | . . Allies Corrupted . | . . Allies Melted . | . . Intel | -11 -10 ------- Run | Yrd Mat Robot Analysis Total . | . . Derelict Logs Recovered . | . . Drone Launches . | . . Drone Recoveries . | . . Exploration | -11 -10 ------------- Run | Yrd Mat Turns Passed 450 | 118 332 Spaces Moved 365 | 82 283 Core 22 | 22 . Treads . | . . Legs . | . . Wheels 318 | 60 258 Hover . | . . Flight 25 | . 25 Fastest Speed 50 | 50 80 Average Speed 85 | 79 87 Slowest Speed 120 | 90 120 Overloaded Moves . | . . Propulsion Burnouts . | . . Robots Hopped . | . . Cave-ins Triggered . | . . Exploration Rate (%) 30 | 4 57 Regions Visited 1 Branch Regions . Pre-discovered Areas . | . . Known Exits Taken . | . . Unknown Exits Taken 1 | 1 . Scrap Searched . | . . Spaces Dug . | . . Terrain Destroyed 5 | . 5 Melee . | . . Projectile . | . . AOE 5 | . 5 Terrain Rammed . | . . Walls Destroyed . | . . Machines Disabled . | . . Actions | -11 -10 --------- Run | Yrd Mat Total 447 | 120 327 Wait 15 | 13 2 Move 364 | 81 283 Hop . | . . Pick Up 20 | 11 9 Fast Attach . | . . Attach 10 | 7 3 Detach . | . . Swap 3 | 1 2 Drop 4 | . 4 Fire 28 | 7 21 Melee . | . . Ram 3 | . 3 Kick . | . . Crush . | . . Escape Stasis . | . . Rewire . | . . Trap . | . . Miscellaneous . | . . Route ------- -11/Scrapyard -10/Materials (discovered 1 exit: [*Mat]) History --------- Turn | Location | Event 11 | -11/Scrapyard | Discovered new exit (range 15) 119 | -11/Scrapyard | Entered Materials 317 | -10/Materials | Build established: Mutant 413 | -10/Materials | Core integrity fell below 50% 423 | -10/Materials | Core integrity fell below 20% 448 | -10/Materials | Discovered new exit (range 16) 450 | -10/Materials | Lost 7 parts (1p4n2w) 451 | -10/Materials | Destroyed by S-10 Pest with Light Assault Rifle Last Messages --------------- 00399_ Lgt. Ion Engine destroyed. 00400_ K-01 Serf collects debris. 00407_ EM Pulse Gun destroyed. 00409_ G-34 Mercenary IFF system glitched. 00410_ Slammed into G-34 Mercenary. 00411_ K-01 Serf collects debris. 00413_ Med. Laser destroyed. 00415_ Com. Wheel destroyed. 00415_ Acquired Corrupted Flight Unit. 00416_ Integrated Corrupted Flight Unit (+2). 00417_ K-01 Serf collects debris. 00419_ Flight Unit destroyed. 00420_ Acquired Flight Unit. 00421_ K-01 Serf collects debris. 00422_ Slammed into K-01 Serf. 00423_ R-06 Scavenger collects Lgt. Assault Rifle. 00423_ Slammed into K-01 Serf. 00447_ System corrupted: Matter fused (-5). 00448_ EXIT=FOUND Map ----- +----------------------------------------------------+ | ??????????????????????# ##### ##### | | ??????????????????????# | | ?????????????????#????# *%[% | | ?????????????????# ???# | | ?????????????????# ??# ######/############ | | ????????????????## ?# ?# #????# | | ????????????????# ]# ## """ "" #????# | | ????????????????# # """ """ #????# | | ????????????????# T + """ """ #????# | | ????????????????# # #?#??# | | ????????????????# #### # #????# | | ????????????????## a????# # #????# | | ?????????????????# ????# ######+######????# | | ?????????????????# ????# #????? ??????????# | | ?????????????????# #####/####?? ??????????# | | ?????????????????# # #?? ??????"???# | | ?????????????????# # """ #?????????????# | | ?????????????????# # """ #?????????????# | | ?????????????????# # """ #?????????????? | | ?????????????????# # #?????????????? | | ?????????????????# # #?????????????? | | ?????????????????# # #?????????????? | | ?????????????????# + "T" +?????????????? | | ?????????????????# s# """ #?????????????? | | ?????????????????# ##########????????"?? ?? | | ?????????????????# @#??????????????????????? | | ?????????????????# #??????????????????????? | | ?????????????????+ #??????????????????????? | | ?????????????????# #??????????????????????? | | ?????????????????# #??????????????????????? | | ?????????????????# #??????????????????????? | | ?????????????????# #??????????????????????? | | ?????????????????# #??????????????????????? | | ?????????????????# #??????????????????????? | | ?????????????????# ???????????????????????? | | ????????????????? ???????????????????????? | | ????????????????? ??????????????????????? | | ????????????????? ???????????????????????? | | ????????????????? < ???????????????????????? | | ???????????????? ???????????????????????? | | ??????????????????###???????????????????????? | | ????????????????????????????????????????????? | | ????????????????????????????????????????????? | | ????????????????????????????????????????????? | | ????????????????????????????????????????????? | | ????????????????????????????????????????????? | | ????????????????????????????????????????????? | | ????????????????????????????????????????????? | | ????????????????????????????????????????????? | | | +----------------------------------------------------+ Best States ------------- Heat Dissipation 25 Energy Generation 10 Energy Capacity 125 Matter Stores 448 Matter Capacity 450 Sight Range 16 Terrain Scan Range 16 Terrain Scan Density 10 Evasion (%) 50 Item Schematics ----------------- None Robot Schematics ------------------ None Fabricated ------------ Nothing Alien Tech Used ----------------- None Achievements -------------- None Challenges ------------ None Game ------ Seed StealthQuantumAutobeam Manual? 0 Play Time 00:18:46 Cumulative 3.3 hours Start 2024.07.10 @ 16:28:13 End 2024.07.10 @ 19:38:26 Sessions 8 Manual Loads 0 Difficulty Rogue Special Mode None Game No. 5 Rogue 5 Adventurer 0 Explorer 0 Win Type - Total 0 Types 0/0/0/0/0/0/0/0/0 Lore% 1 Gallery% 6 Achievement% 5 Wizard Run 0 Options --------- Layout 1 ASCII 0 Keyboard 1 Movement Numpad Keybinds 0 Fullscreen 0 Font 14/SmallcapsGlow Map View 25x25 Zoom Use 84% Tactical HUD 1 Map Filters NONE Filters NONE Steam X RUN: 899863a3-c8a7-44fc-ae8a-840567e894cd